[Event "21st Open Gran Hotel Bali-A 2024"]
[Site "Benidorm"]
[Date "2024.11.29"]
[Round "1.1"]
[White "Stewart, Ashley"]
[Black "Albornoz Cabrera, Carlos Daniel"]
[Result "0-1"]
[ECO "A13"]
[WhiteElo "2078"]
[BlackElo "2572"]
[Annotator "TA"]
[PlyCount "120"]
[EventDate "2024.11.26"]
[EventType "swiss"]
[EventCountry "ESP"]
[SourceTitle "playchess.com"]
[Source "ChessBase"]
[SourceQuality "1"]
[TimeControl "5400+30"]

{[%evp 10,120,47,9,24,14,21,18,20,15,14,19,14,20,10,17,15,25,24,15,24,-23,34,39,29,31,51,57,45,39,85,64,72,38,73,28,99,7,6,7,5,-8,-15,-3,-6,-7,-6,-11,-6,-11,-10,-14,-14,-38,-23,-14,-17,-11,0,0,0,0,0,0,0,0,0,0,0,0,0,0,0,0,0,0,0,0,0,0,0,-33,-38,-80,-80,-265,-262,-348,-277,-1872,-2881,-748,-4956,-2379,-839,-29984,-29985,-29985,-29986,-29986,-29983,-29983,-29984,-29989,-29990,-29990,-29988,-29988,-29988,-29990,-29988,-29988,-29989]} 1. c4 {[%emt 0:00:30]} e6 {[%emt 0:00:08]} 2. g3 {[%emt 0:00:00]} d5 {[%emt 0:00:05]} 3. Bg2 {[%emt 0:00:09]} d4 {[%emt 0:00:06]} 4. Nf3 {[%emt 0:00:03]} Nc6 {[%emt 0:00:14]} 5. O-O {[%emt 0:01:16]} Nf6 {[%emt 0:00:04]} 6. d3 {[%emt 0:02:20]} Bc5 {[%emt 0:00:07]} 7. Nbd2 {[%emt 0:03:07]} a5 {[%emt 0:00:13]} 8. Nb3 {[%emt 0:02:38] Inhibits e5.} Be7 {[%emt 0:00:06] The position is equal.} 9. e3 {[%emt 0:02:40]} dxe3 {[%emt 0:00:13]} 10. Bxe3 {[%emt 0:03:00]} Ng4 {[%emt 0:00:20]} 11. Bc5 {[%emt 0:14:11]} O-O {[%emt 0:00:34]} 12. Bxe7 {[%emt 0:06:20]} Qxe7 {[%emt 0:00:07]} 13. Qe2 {[%emt 0:06:11]} e5 {[%emt 0:06:19][%cal Be6e5,Be5e4][%mdl 32]} 14. Rfe1 {[%emt 0:04:44]} (14. Rae1 $5) 14... Re8 {[%emt 0:03:16]} 15. h3 {[%emt 0:05:59]} (15. Qc2 $142) 15... Nh6 {[%emt 0:04:16]} ({Black should try} 15... a4 $11 16. Nbd2 Nf6) 16. d4 $14 {[%emt 0:10:52]} e4 {[%emt 0:08:52][%cal Oa5a4] [#] aiming for ...a4!} 17. Ne5 $1 {[%emt 0:02:58]} f5 {[%emt 0:28:47]} (17... Nxe5 18. dxe5) 18. Nxc6 {[%emt 0:04:06]} bxc6 {[%emt 0:00:05]} 19. Nc5 {[%emt 0:06:06]} Nf7 {[%emt 0:02:06]} (19... Qd6 $14) 20. Rad1 {[%emt 0:01:54]} Ng5 {[%emt 0:03:51]} 21. f3 {[%emt 0:11:42][%cal Rf3e4]} Qd6 {[%emt 0:05:24]} 22. h4 {[%emt 0:03:43]} Ne6 {[%emt 0:03:39] [#]} (22... Nxf3+ $11 23. Bxf3 Qxg3+ 24. Bg2 Qxh4) 23. Nxe6 {[%emt 0:02:19]} (23. Qf2 $1 $16) 23... Bxe6 $11 {[%emt 0:00:20]} 24. fxe4 {[%emt 0:01:02] Hoping for e5.} Qxg3 {[%emt 0:03:42]} 25. exf5 {[%emt 0:03:19]} Bxf5 {[%emt 0:06:40]} 26. Qf2 {[%emt 0:00:38]} Qg6 {[%emt 0:02:51]} 27. Kh2 {[%emt 0:00:49] Repels Bh3} Bg4 {[%emt 0:05:12]} 28. Rxe8+ {[%emt 0:00:59]} Rxe8 {[%emt 0:00:02]} 29. Rd2 {[%emt 0:00:51][%cal Bd1d2,Bd2e2,Be2e7][%mdl 32]} Qh6 {[%emt 0:01:52]} 30. Kg1 {[%emt 0:00:31]} Bd7 {[%emt 0:03:17]} (30... Rf8 $5 31. Qe1 $8 Qf6 $11) 31. d5 {[%emt 0:00:24]} (31. b3 {is interesting.} Qg6 32. Re2 Rf8 33. Qe1) 31... Rf8 {[%emt 0:02:03]} 32. Qe1 {[%emt 0:00:29]} c5 {[%emt 0:01:58]} 33. Re2 {[%emt 0:00:33] Prevents Re8} Qf4 {[%emt 0:05:39]} 34. Re7 {[%emt 0:00:29]} Qd4+ {[%emt 0:00:26]} 35. Qe3 {[%emt 0:00:33]} Qxe3+ {[%emt 0:01:23]} 36. Rxe3 {[%emt 0:00:01][%mdl 4096] Endgame. KRB-KRB} Kf7 {[%emt 0:01:09]} 37. Ra3 {[%emt 0:00:47]} a4 {[%emt 0:00:05]} 38. b3 {[%emt 0:00:41]} axb3 {[%emt 0:00:42]} 39. axb3 {[%emt 0:00:11]} Ke7 {[%emt 0:00:17]} 40. Ra5 {[%emt 0:00:47]} Kd6 {[%emt 0:00:01]} 41. Ra6+ {[%emt 0:00:08]} Ke5 {[%emt 0:00:03]} 42. Ra7 {[%emt 0:00:19]} Rc8 {[%emt 0:00:43]} 43. Kf2 {[%emt 0:00:18]} h6 {[%emt 0:02:06]} 44. Bf3 {[%emt 0:01:13]} g5 {[%emt 0:00:25]} 45. hxg5 {[%emt 0:00:12]} hxg5 {[%emt 0:00:01]} 46. Ke3 {[%emt 0:00:19]} g4 {[%emt 0:00:29]} 47. Be2 {[%emt 0:01:01] This move loses the game for White.} (47. Be4 $17) 47... g3 $19 {[%emt 0:00:56]} 48. Ra3 {[%emt 0:00:37]} Rf8 {[%emt 0:00:36]} 49. Bf3 $2 {[%emt 0:00:20] [#]} (49. Ra2) 49... Bg4 $1 {[%emt 0:00:35][%mdl 512]} 50. Bh1 {[%emt 0:00:40]} (50. Bg2 Rf2) 50... Rf1 {[%emt 0:00:20]} 51. Bg2 {[%emt 0:00:10]} Rf2 {[%emt 0:00:38]} 52. Be4 {[%emt 0:00:10]} Re2+ {[%emt 0:00:08] Black mates.} 53. Kd3 {[%emt 0:00:12]} Rxe4 {[%emt 0:00:10] KRB-KR} 54. Ra2 {[%emt 0:00:01]} Bf5 {[%emt 0:00:18]} 55. Rg2 {[%emt 0:00:09]} Rd4+ {[%emt 0:00:11]} 56. Ke3 {[%emt 0:00:15]} Rd3+ {[%emt 0:00:05]} 57. Ke2 {[%emt 0:00:04]} Rxb3 {[%emt 0:00:03]} 58. Rg1 {[%emt 0:00:20]} Bd3+ {[%emt 0:00:18]} 59. Kd2 {[%emt 0:00:02]} Bxc4 {[%emt 0:00:07]} 60. Rh1 {[%emt 0:00:10]} Bxd5 {[%emt 0:00:20] Weighted Error Value: White=0.34/Black=0.08 (flawless) .  Loses game:     	White=1     	---        Mistake:       	White=3     	Black=3      Inaccurate:     	White=5     	Black=1      OK:         	White=19    	Black=16     Best:        	White=1     	Black=2      Brilliant:      	White=1     	Black=1} 0-1

[Event "21st Open Gran Hotel Bali-A 2024"]
[Site "Benidorm"]
[Date "2024.11.29"]
[Round "1.2"]
[White "Amar, Elham"]
[Black "Karut, Kacper"]
[Result "1-0"]
[ECO "B60"]
[WhiteElo "2529"]
[BlackElo "2076"]
[Annotator "TA"]
[PlyCount "51"]
[EventDate "2024.11.26"]
[EventType "swiss"]
[EventCountry "ESP"]
[SourceTitle "playchess.com"]
[Source "ChessBase"]
[SourceQuality "1"]
[TimeControl "5400+30"]

{[%evp 11,51,21,43,25,37,42,41,35,35,28,34,44,43,26,43,0,23,0,0,0,8,0,0,0,29,0,19,27,43,0,73,74,70,80,95,102,104,101,104,106,241,250]} 1. e4 {[%emt 0:00:03]} c5 {[%emt 0:00:20]} 2. Nf3 {[%emt 0:00:08]} d6 {[%emt 0:00:04]} 3. d4 {[%emt 0:00:05]} cxd4 {[%emt 0:00:05]} 4. Nxd4 {[%emt 0:00:05]} Nf6 {[%emt 0:00:15]} 5. Nc3 {[%emt 0:00:06]} Nc6 {[%emt 0:00:07]} 6. Bg5 {[%emt 0:00:39]} Bd7 {[%emt 0:00:09]} 7. Nxc6 {[%emt 0:00:16]} Bxc6 {[%emt 0:02:36]} 8. Bxf6 {[%emt 0:00:07]} gxf6 {[%emt 0:00:44]} 9. Bb5 {[%emt 0:00:06] White is slightly better.} Bxb5 {[%emt 0:10:05]} 10. Nxb5 {[%emt 0:00:06]} Qa5+ {[%emt 0:00:06]} 11. Nc3 {[%emt 0:00:08]} e6 {[%emt 0:15:24]} 12. O-O {[%emt 0:02:26][%cal Bh1f1,Bf1f3,Bf3h3,Bh3h5][%mdl 32]} Be7 {[%emt 0:02:14]} 13. Kh1 {[%emt 0:00:07]} Rg8 {[%emt 0:07:34]} 14. f4 {[%emt 0:07:05]} O-O-O {[%emt 0:04:16]} 15. Rb1 {[%emt 0:10:35]} Qc5 {[%emt 0:05:38]} 16. Rf3 {[%emt 0:03:53][%cal Oc3d5]} Kb8 {[%emt 0:01:59]} 17. Qe2 {[%emt 0:06:48]} Rc8 {[%emt 0:02:40]} 18. Qd3 {[%emt 0:08:56]} Qc4 {[%emt 0:08:38]} 19. Rh3 {[%emt 0:01:57]} Rg7 {[%emt 0:01:38]} 20. Rh5 {[%emt 0:02:14]} Rc5 {[%emt 0:11:10]} (20... d5 $11) 21. f5 $16 {[%emt 0:04:11]} d5 {[%emt 0:13:32]} 22. fxe6 {[%emt 0:06:01]} d4 {[%emt 0:07:45] [#] aiming for ...Qxd3.} 23. Rxc5 {[%emt 0:00:32]} Qxc5 {[%emt 0:00:22]} 24. Ne2 {[%emt 0:00:23]} fxe6 {[%emt 0:01:41]} 25. Nxd4 {[%emt 0:00:17]} Bd6 {[%emt 0:01:47] [#]} (25... Qd6 $16) 26. Rd1 $1 {[%emt 0:01:02] Weighted Error Value: White=0.11 (very precise) /Black=0.21 (precise) .  Mistake:       	---       	Black=2      Inaccurate:     	White=3     	Black=1      OK:         	White=4     	Black=7      Best:        	White=3     	---        Strong:       	White=1     	---} (26. Nxe6 Qe5 27. Qh3 (27. Nxg7 $2 Qxh2#) 27... Re7 $15) 1-0

[Event "21st Open Gran Hotel Bali-A 2024"]
[Site "Benidorm"]
[Date "2024.11.29"]
[Round "1.3"]
[White "Peter, Steven"]
[Black "Solodovnichenko, Yuri"]
[Result "0-1"]
[ECO "B50"]
[WhiteElo "2074"]
[BlackElo "2503"]
[Annotator "TA"]
[PlyCount "54"]
[EventDate "2024.11.26"]
[EventType "swiss"]
[EventCountry "ESP"]
[SourceTitle "playchess.com"]
[Source "ChessBase"]
[SourceQuality "1"]
[TimeControl "5400+30"]

{[%evp 11,54,10,12,0,4,3,25,22,28,14,24,9,0,0,13,15,12,22,16,26,37,32,64,56,39,72,39,25,17,17,41,0,0,0,0,-105,-98,-92,-45,-142,-143,-141,-129,-412,-400]} 1. e4 {[%emt 0:00:04]} c5 {[%emt 0:00:44]} 2. Nf3 {[%emt 0:00:08]} d6 {[%emt 0:00:07]} 3. Bc4 {[%emt 0:00:29]} Nf6 {[%emt 0:00:12]} 4. d3 {[%emt 0:00:06]} Nc6 {[%emt 0:00:53]} 5. c3 {[%emt 0:00:22]} g6 {[%emt 0:00:36]} 6. O-O {[%emt 0:00:28]} Bg7 {[%emt 0:00:03]} 7. a4 {[%emt 0:00:56]} O-O {[%emt 0:00:13]} 8. Re1 {[%emt 0:00:14]} e5 {[%emt 0:07:15]} 9. Bg5 {[%emt 0:03:05] White has an edge.} h6 {[%emt 0:03:03]} 10. Bxf6 {[%emt 0:00:05]} Qxf6 {[%emt 0:00:11]} 11. a5 {[%emt 0:13:43]} Rb8 {[%emt 0:03:36]} 12. Nbd2 {[%emt 0:05:59]} Qd8 {[%emt 0:01:57]} 13. Qa4 {[%emt 0:00:27]} Bd7 {[%emt 0:01:30]} 14. Qa3 {[%emt 0:09:00]} Kh7 {[%emt 0:02:12]} 15. b4 {[%emt 0:04:28]} cxb4 {[%emt 0:00:39]} 16. cxb4 {[%emt 0:00:04]} a6 {[%emt 0:02:41]} 17. b5 {[%emt 0:00:37]} axb5 {[%emt 0:01:27]} 18. Bxb5 {[%emt 0:59:15][%cal Od2c4]} Be6 {[%emt 0:03:08]} 19. Reb1 {[%emt 0:00:00]} Na7 {[%emt 0:02:59]} 20. Bc4 {[%emt 0:00:00] next Bxe6 is good for White.} d5 {[%emt 0:01:27]} 21. exd5 {[%emt 0:00:00]} Bxd5 {[%emt 0:00:44]} 22. Ra2 {[%emt 0:00:00]} Nc6 {[%emt 0:01:46]} 23. Qc5 {[%emt 0:00:00]} (23. h3 $11 {keeps the balance.}) 23... Bxc4 $17 {[%emt 0:00:24]} 24. dxc4 {[%emt 0:00:00]} f5 {[%emt 0:07:11]} ({Black should try} 24... Re8 $17 {...e4 would now be deadly.} 25. Nf1 e4) 25. Qd5 {[%emt 0:00:00]} (25. a6 $15 Qd7 26. a7) 25... e4 {[%emt 0:01:54]} 26. Ne1 {[%emt 0:00:00]} Qe7 {[%emt 0:00:56] And now ...Nb4 would win.} 27. Nb3 $2 {[%emt 0:00:00][%mdl 8192] [#]} (27. Qb5 $17 {might work better.}) 27... Nb4 $1 {[%emt 0:00:29][%csl LRa2,LRd5] Weighted Error Value: White=0.36/Black=0.08 (flawless) .  Loses game:     	White=1     	---        Mistake:       	White=2     	Black=1      Inaccurate:     	White=1     	Black=1      OK:         	White=8     	Black=7      Best:        	White=1     	Black=3} 0-1

[Event "21st Open Gran Hotel Bali-A 2024"]
[Site "Benidorm"]
[Date "2024.11.29"]
[Round "1.4"]
[White "Kvaloy, Aksel Bu"]
[Black "Nunez Munoz, Jesus"]
[Result "1-0"]
[ECO "B13"]
[WhiteElo "2502"]
[BlackElo "2060"]
[Annotator "TA"]
[PlyCount "103"]
[EventDate "2024.11.26"]
[EventType "swiss"]
[EventCountry "ESP"]
[SourceTitle "playchess.com"]
[Source "ChessBase"]
[SourceQuality "1"]
[TimeControl "5400+30"]

{[%evp 25,103,22,34,38,50,40,48,26,15,0,13,0,7,-9,12,6,45,32,72,74,77,60,86,34,79,72,80,66,64,52,47,54,56,52,57,54,53,49,37,46,56,29,44,41,45,49,43,48,247,255,288,275,339,328,466,452,460,460,421,427,441,422,593,620,618,615,1239,1099,1456,1079,2437,2058,2562,2689,6107,5478,29983,29984,29990,29991]} 1. e4 {[%emt 0:00:17]} c6 {[%emt 0:00:17]} 2. d4 {[%emt 0:00:06]} d5 {[%emt 0:00:10]} 3. exd5 {[%emt 0:00:07]} cxd5 {[%emt 0:00:10]} 4. Bd3 {[%emt 0:00:08]} Nc6 {[%emt 0:00:30]} 5. c3 {[%emt 0:00:14]} Nf6 {[%emt 0:00:26]} 6. h3 {[%emt 0:00:07]} e5 {[%emt 0:01:09]} 7. dxe5 {[%emt 0:00:19]} Nxe5 {[%emt 0:00:07]} 8. Nf3 {[%emt 0:00:08]} Nxd3+ {[%emt 0:05:13]} 9. Qxd3 {[%emt 0:00:42]} Be7 {[%emt 0:00:25]} 10. O-O {[%emt 0:00:18]} O-O {[%emt 0:00:29]} 11. Be3 {[%emt 0:03:51]} Re8 {[%emt 0:09:13]} 12. Nbd2 {[%emt 0:00:30]} h6 {[%emt 0:13:18]} 13. Rfe1 {[%emt 0:02:14]} Bd7 {[%emt 0:01:15]} 14. Bd4 {[%emt 0:01:19]} Be6 {[%emt 0:02:15]} 15. Rad1 {[%emt 0:01:30]} b6 {[%emt 0:08:10]} 16. Ne5 {[%emt 0:12:26] White is slightly better.} Qc8 {[%emt 0:08:21]} 17. Qf3 {[%emt 0:01:56]} Bc5 {[%emt 0:04:42]} 18. Qf4 {[%emt 0:04:33]} Qc7 {[%emt 0:02:48]} 19. Re3 {[%emt 0:09:15]} Rac8 {[%emt 0:08:05]} 20. Rde1 {[%emt 0:01:09]} Bxd4 {[%emt 0:00:52]} 21. Qxd4 {[%emt 0:00:37]} Qc5 {[%emt 0:00:50]} 22. Nb3 {[%emt 0:01:34]} Qc7 {[%emt 0:04:10]} 23. f3 {[%emt 0:10:01]} Bf5 {[%emt 0:05:16]} 24. Qf4 {[%emt 0:03:07]} (24. Qh4 $16) 24... Bd7 {[%emt 0:04:53]} 25. Nd4 {[%emt 0:00:56]} Rcd8 {[%emt 0:10:13]} 26. h4 {[%emt 0:04:41] White is more active.} (26. Qh2 {simplifies} Re7 27. Nxd7 Qxh2+ 28. Kxh2 Rexd7 29. g4) 26... Re7 {[%emt 0:01:23]} 27. Nd3 {[%emt 0:03:47][%csl LRc7,LRe7] A dynamic duo of knights.} Qxf4 {[%emt 0:00:13]} 28. Nxf4 {[%emt 0:00:05]} Rxe3 {[%emt 0:00:07]} 29. Rxe3 {[%emt 0:00:03]} Re8 {[%emt 0:00:07]} 30. Rxe8+ {[%emt 0:02:24]} Bxe8 $14 {[%emt 0:00:07][%mdl 4096] Endgame. KBN-KNN} 31. Kf2 {[%emt 0:01:34]} Kf8 {[%emt 0:00:32]} 32. Ke3 {[%emt 0:00:33]} Bd7 {[%emt 0:00:39]} 33. Nc2 {[%emt 0:01:32]} Ke7 {[%emt 0:00:24]} 34. Kd4 {[%emt 0:00:20]} Kd6 {[%emt 0:00:06]} 35. Ne3 {[%emt 0:00:29]} Be6 {[%emt 0:01:26]} 36. h5 {[%emt 0:01:55]} a5 $2 {[%emt 0:01:10] [#] Loses the game.} (36... Kc6 $14) 37. a4 $1 $18 {[%emt 0:02:15]} Kc6 {[%emt 0:01:01]} 38. b4 {[%emt 0:00:52][%cal Bb2b4,Bb4b5][%mdl 32]} Kd6 {[%emt 0:05:54]} 39. b5 {[%emt 0:00:30]} g5 {[%emt 0:00:49]} (39... Nd7 {keeps fighting.} 40. Nfxd5 (40. Nexd5 Bxd5 41. Nxd5 g6 $18) 40... Bxd5 41. Nxd5 g5) 40. hxg6 {[%emt 0:00:12]} fxg6 {[%emt 0:00:05]} 41. Nxg6 {[%emt 0:00:22]} Nd7 {[%emt 0:00:10]} 42. Nf4 {[%emt 0:02:30]} Nc5 {[%emt 0:00:21]} 43. Nexd5 {[%emt 0:01:39]} Nb3+ {[%emt 0:01:57]} (43... Nxa4 $142 44. Nxe6 Kxe6 45. Nf4+ Kf5) 44. Kc4 {[%emt 0:00:32]} Nd2+ {[%emt 0:00:08]} 45. Kd3 {[%emt 0:00:46]} Nxf3 {[%emt 0:00:55]} 46. Nxe6 {[%emt 0:01:01]} ({Weaker is} 46. Nxb6 Bf5+ 47. Ke3 Kc5 $16) 46... Ne5+ {[%emt 0:01:22]} 47. Ke4 {[%emt 0:00:38][%cal Od5b6]} Kxe6 {[%emt 0:00:07]} 48. Nxb6 {[%emt 0:00:05]} h5 {[%emt 0:00:44]} 49. c4 {[%emt 0:00:34][%cal Bc3c4,Bc4c5][%mdl 32] [#] c5 is the strong threat.} Ng6 {[%emt 0:00:54]} 50. c5 {[%emt 0:00:24] Black must now prevent c6.} Nh4 {[%emt 0:00:08]} 51. Nd5 {[%emt 0:00:27]} Nxg2 {[%emt 0:01:08]} 52. b6 {[%emt 0:28:18] Weighted Error Value: White=0.08 (flawless) /Black=0.50.  Loses game:     	---       	Black=1      Mistake:       	White=1     	Black=2      Inaccurate:     	White=1     	Black=4      OK:         	White=9     	Black=12     Best:        	White=5     	Black=2      Strong:       	White=1     	---} 1-0

[Event "21st Open Gran Hotel Bali-A 2024"]
[Site "Benidorm"]
[Date "2024.11.29"]
[Round "1.5"]
[White "Lacrosse, Marc"]
[Black "Castellanos Rodriguez, Renier"]
[Result "0-1"]
[ECO "E90"]
[WhiteElo "2057"]
[BlackElo "2472"]
[Annotator "TA"]
[PlyCount "48"]
[EventDate "2024.11.26"]
[EventType "swiss"]
[EventCountry "ESP"]
[SourceTitle "playchess.com"]
[Source "ChessBase"]
[SourceQuality "1"]
[TimeControl "5400+30"]

{[%evp 12,48,63,56,58,57,64,41,34,30,36,29,32,23,43,37,48,1,11,18,14,0,0,-7,0,0,0,-12,-8,-11,0,-22,-19,-13,-13,-36,-35,-35,-30]} 1. d4 {[%emt 0:01:13]} Nf6 {[%emt 0:00:06]} 2. c4 {[%emt 0:00:27]} g6 {[%emt 0:00:06]} 3. Nc3 {[%emt 0:00:39]} Bg7 {[%emt 0:00:06]} 4. e4 {[%emt 0:00:34]} d6 {[%emt 0:00:04]} 5. Nf3 {[%emt 0:00:54]} Bg4 {[%emt 0:00:36]} 6. Be2 {[%emt 0:02:05]} Bxf3 {[%emt 0:00:17]} 7. Bxf3 {[%emt 0:00:54] [#] aiming for e5.} e5 {[%emt 0:00:12]} 8. d5 {[%emt 0:11:51]} h5 {[%emt 0:00:12]} 9. Rb1 {[%emt 0:08:54]} Bh6 {[%emt 0:00:59] White is slightly better.} 10. b4 {[%emt 0:03:20]} Bxc1 {[%emt 0:03:05]} 11. Qxc1 {[%emt 0:02:01]} Nbd7 {[%emt 0:00:13]} 12. h3 {[%emt 0:15:52]} a5 {[%emt 0:01:41]} 13. a3 $1 {[%emt 0:02:33]} Kf8 {[%emt 0:01:23]} 14. Qe3 {[%emt 0:07:21]} (14. O-O $14) 14... Kg7 {[%emt 0:00:33]} 15. O-O {[%emt 0:03:34]} Qe7 {[%emt 0:00:48]} 16. Rfc1 {[%emt 0:07:26]} Rhc8 {[%emt 0:02:52]} 17. Bd1 {[%emt 0:08:23]} c6 {[%emt 0:07:33]} 18. dxc6 {[%emt 0:07:28]} bxc6 {[%emt 0:00:44]} 19. Be2 {[%emt 0:06:50]} axb4 {[%emt 0:08:23]} 20. axb4 {[%emt 0:00:11]} Nf8 {[%emt 0:01:00]} 21. b5 {[%emt 0:03:10]} Ne6 {[%emt 0:01:59]} 22. bxc6 {[%emt 0:02:16]} Rxc6 {[%emt 0:01:08]} 23. Nd5 {[%emt 0:01:13]} Qd8 {[%emt 0:01:49]} 24. Rd1 {[%emt 0:01:56]} Rca6 {[%emt 0:01:23] Weighted Error Value: White=0.10 (very precise) /Black=0.03 (flawless) .  Mistake:       	White=1     	---        OK:         	White=3     	Black=9      Strong:       	White=1     	---} 0-1

[Event "21st Open Gran Hotel Bali-A 2024"]
[Site "Benidorm"]
[Date "2024.11.29"]
[Round "1.6"]
[White "Ilinca, Felix-Antonio"]
[Black "Khoroshykh, Yaroslav"]
[Result "1-0"]
[ECO "B90"]
[WhiteElo "2470"]
[BlackElo "2057"]
[Annotator "RC"]
[PlyCount "77"]
[EventDate "2024.11.26"]
[EventType "swiss"]
[EventCountry "ESP"]
[SourceTitle "playchess.com"]
[Source "ChessBase"]
[SourceQuality "1"]
[TimeControl "5400+30"]

1. e4 c5 2. Nf3 d6 3. d4 cxd4 4. Nxd4 Nf6 5. Nc3 a6 6. h3 h5 7. Bc4 Qc7 8. Bb3 e6 9. Qe2 b5 10. a3 Nc6 11. Nxc6 Qxc6 12. Nd5 Bb7 13. Bg5 O-O-O 14. Nxf6 Be7 15. Nh7 Qc7 16. c4 Rxh7 17. Bxe7 Qxe7 18. cxb5 Qg5 19. bxa6 Qa5+ 20. Qd2 Qxd2+ 21. Kxd2 Bxe4 22. Rhc1+ Kb8 23. f3 Ba8 24. Bc4 Rhh8 25. b4 Rc8 26. b5 Rc5 27. b6 Rhc8 28. b7 Bxb7 29. axb7 Kxb7 30. Rcb1+ Ka7 31. Bd3 Rg5 32. g4 hxg4 33. hxg4 Rh8 34. Rb4 Rh2+ 35. Ke3 Re5+ 36. Be4 d5 37. Rab1 dxe4 38. Ra4+ Ra5 39. Rxa5# 1-0

[Event "21st Open Gran Hotel Bali-A 2024"]
[Site "Benidorm"]
[Date "2024.11.29"]
[Round "1.7"]
[White "Kaewpitakkun, Pantham"]
[Black "Mitusov, Semen"]
[Result "0-1"]
[ECO "B11"]
[WhiteElo "2055"]
[BlackElo "2465"]
[Annotator "TA"]
[PlyCount "72"]
[EventDate "2024.11.26"]
[EventType "swiss"]
[EventCountry "ESP"]
[SourceTitle "playchess.com"]
[Source "ChessBase"]
[SourceQuality "1"]
[TimeControl "5400+30"]

{[%evp 10,72,10,14,6,11,19,10,29,28,19,22,35,-19,20,-9,27,27,42,40,66,19,25,-37,-43,-155,-158,-149,-166,-188,-193,-179,-51,-58,-61,-46,-50,-45,-52,-34,-64,-54,-11,-209,-209,-201,-189,-202,-208,-264,-261,-406,-391,-469,-463,-29992,-29993,-29993,-29994,-29994,-29995,-29995,-29996,-29996,-29997]} 1. e4 {[%emt 0:00:04]} c6 {[%emt 0:00:09]} 2. Nf3 {[%emt 0:00:12]} d5 {[%emt 0:00:06]} 3. Nc3 {[%emt 0:00:09]} Bg4 {[%emt 0:00:07]} 4. h3 {[%emt 0:00:08]} Bxf3 {[%emt 0:00:06]} 5. Qxf3 {[%emt 0:00:06]} e6 {[%emt 0:00:07]} 6. Be2 {[%emt 0:00:34]} Nf6 {[%emt 0:00:54]} 7. O-O {[%emt 0:00:34]} d4 {[%emt 0:00:41]} 8. Nb1 {[%emt 0:01:27]} Nbd7 {[%emt 0:00:07]} 9. d3 {[%emt 0:01:52]} Bd6 {[%emt 0:00:07] Against Qg3} 10. g3 {[%emt 0:04:46]} h5 {[%emt 0:04:53]} 11. Bg5 {[%emt 0:02:59]} (11. Qg2 $14) 11... Qa5 {[%emt 0:06:36]} 12. h4 {[%emt 0:04:44]} Ng4 {[%emt 0:00:41]} 13. Nd2 {[%emt 0:02:08][%cal Oc2c3]} Nde5 {[%emt 0:04:00] Excellent horsemanship.} 14. Qg2 {[%emt 0:03:22]} f6 {[%emt 0:02:40] Prevents f4.} 15. Bf4 {[%emt 0:02:27]} (15. Nb3 $14 {was preferable.} Qb6 16. Bf4) 15... O-O-O $11 {[%emt 0:10:43]} 16. Bxe5 {[%emt 0:08:08]} (16. Nb3 $11 Qc7 17. Nxd4) 16... Nxe5 $15 {[%emt 0:07:13]} 17. Nf3 {[%emt 0:03:16] White is weak on the dark squares} ({White should try} 17. Nb3 $15 Qb6 18. Qh3) 17... Nxf3+ $17 {[%emt 0:01:43]} 18. Bxf3 {[%emt 0:04:42]} g5 {[%emt 0:00:33] Black is more active.} 19. e5 {[%emt 0:03:17]} Bxe5 {[%emt 0:01:31]} (19... Qxe5 20. Rae1 Qf5 21. Bxh5 $17) 20. b4 {[%emt 0:03:00]} Qxb4 {[%emt 0:10:12]} ({Black should play} 20... Qb6 $19 {White must now prevent ...gxh4.} 21. hxg5 fxg5) 21. Bxc6 $1 $15 {[%emt 0:05:48] Strongly threatening Rab1.} bxc6 {[%emt 0:00:24]} (21... Qb6 {simplifies} 22. Be4 Qc7 23. Rfb1 b6) 22. Qxc6+ {[%emt 0:00:16]} Bc7 $1 {[%emt 0:00:04]} 23. Qxe6+ {[%emt 0:01:04]} Rd7 $1 {[%emt 0:00:01]} 24. Qa6+ {[%emt 0:02:00]} Qb7 {[%emt 0:00:40]} 25. Qxf6 {[%emt 0:00:15]} Rg8 {[%emt 0:07:41]} 26. hxg5 $2 {[%emt 0:04:23]} (26. Rab1 $1 $11 {and White has nothing to worry.} Bb6 27. hxg5) 26... Bd8 $19 {[%emt 0:02:13]} 27. Qe6 {[%emt 0:04:28]} Rxg5 {[%emt 0:01:26]} 28. Rab1 {[%emt 0:00:51] [#]} Bb6 $1 {[%emt 0:01:21]} 29. a4 {[%emt 0:05:56]} h4 {[%emt 0:06:24]} 30. Qf6 {[%emt 0:03:42]} (30. Rb5 $142 Rxb5 31. axb5) 30... Rdg7 {[%emt 0:07:23][%cal Og5g3]} 31. Qf8+ {[%emt 0:05:06]} Kd7 {[%emt 0:00:06][%cal Og5g3] ( -> ...Rxg3+!)} 32. a5 {[%emt 0:04:02] [#]} (32. Rb5 $19 h3 (32... hxg3 $2 33. Rxg5 gxf2+ 34. Kxf2 $19) 33. f3 Rxg3+ 34. Kh1) 32... Rxg3+ $1 {[%emt 0:01:14][%mdl 512]} 33. fxg3 {[%emt 0:00:45]} Rxg3+ {[%emt 0:00:05]} 34. Kf2 {[%emt 0:00:37]} Qg2+ {[%emt 0:00:58]} 35. Ke1 {[%emt 0:00:09]} Bxa5+ {[%emt 0:00:02]} ({Weaker is} 35... Qxc2 36. Rf7+ Ke6 37. Qe8+ (37. Rf6+ Kd7 38. Qd6+ Kc8 39. Rf8+ Kb7 40. Rxb6+ axb6 41. Qxb6#) 37... Kd6 38. Qd7+ Ke5 39. Rf5#) 36. Rb4 {[%emt 0:00:07]} Bxb4+ {[%emt 0:00:07]} 0-1